[Event "*** Titled Tuesday Blitz"]
[Site "Chess.com"]
[Date "2020.05.26"]
[Round "6"]
[White "letsgoband"]
[Black "ChessTraining77"]
[Result "1-0"]
[WhiteElo "2394"]
[BlackElo "2512"]
[TimeControl "180+1"]
[EndTime "11:08:02 PDT"]
[Termination "letsgoband won by resignation"]

1. e4 {[%clk 0:03:00.9]} 1... c6 {[%clk 0:02:58.7]} 2. d4 {[%clk 0:03:00.2]}
2... d5 {[%clk 0:02:58.6]} 3. Nc3 {[%clk 0:03:00.8]} 3... dxe4 {[%clk
0:02:58.1]} 4. Nxe4 {[%clk 0:03:01.7]} 4... Bf5 {[%clk 0:02:58]} 5. Ng3 {[%clk
0:03:01.7]} 5... Bg6 {[%clk 0:02:57.9]} 6. h4 {[%clk 0:03:02.4]} 6... h6 {[%clk
0:02:57.5]} 7. Nf3 {[%clk 0:03:02.2]} 7... Nd7 {[%clk 0:02:56.8]} 8. h5 {[%clk
0:03:02.7]} 8... Bh7 {[%clk 0:02:56.3]} 9. Bd3 {[%clk 0:03:03.4]} 9... Bxd3
{[%clk 0:02:56.2]} 10. Qxd3 {[%clk 0:03:04.3]} 10... e6 {[%clk 0:02:56.7]} 11.
Bf4 {[%clk 0:03:02.3]} 11... Qa5+ {[%clk 0:02:55.7]} 12. Bd2 {[%clk 0:03:02.5]}
12... Bb4 {[%clk 0:02:55.6]} 13. c3 {[%clk 0:03:02.5]} 13... Be7 {[%clk
0:02:55.5]} 14. c4 {[%clk 0:02:56.5]} 14... Qc7 {[%clk 0:02:55.2]} 15. O-O-O
{[%clk 0:02:57]} 15... Ngf6 {[%clk 0:02:54]} 16. Ne4 {[%clk 0:02:52.5]} 16... b5
{[%clk 0:02:52.7]} 17. c5 {[%clk 0:02:48.4]} 17... Nxe4 {[%clk 0:02:49.6]} 18.
Qxe4 {[%clk 0:02:49.3]} 18... Nf6 {[%clk 0:02:49.4]} 19. Qe2 {[%clk 0:02:49.6]}
19... Nd5 {[%clk 0:02:48.9]} 20. Ne5 {[%clk 0:02:48.6]} 20... Bf6 {[%clk
0:02:49]} 21. g4 {[%clk 0:02:39.5]} 21... Bxe5 {[%clk 0:02:45.8]} 22. dxe5
{[%clk 0:02:28.8]} 22... O-O-O {[%clk 0:02:40]} 23. f4 {[%clk 0:02:25.7]} 23...
Kb7 {[%clk 0:02:35.8]} 24. Kb1 {[%clk 0:02:11.7]} 24... Rd7 {[%clk 0:02:27.1]}
25. Qe1 {[%clk 0:02:10.5]} 25... Re8 {[%clk 0:02:24.5]} 26. Ba5 {[%clk
0:02:09.9]} 26... Qc8 {[%clk 0:02:22.6]} 27. Qe4 {[%clk 0:02:09.4]} 27... f6
{[%clk 0:02:16.1]} 28. a4 {[%clk 0:01:52]} 28... a6 {[%clk 0:02:15]} 29. Ka2
{[%clk 0:01:50]} 29... Rf7 {[%clk 0:02:12.3]} 30. Qg6 {[%clk 0:01:06.3]} 30...
Ree7 {[%clk 0:02:06.9]} 31. Rd4 {[%clk 0:01:05.9]} 31... fxe5 {[%clk 0:02:04.1]}
32. fxe5 {[%clk 0:01:04.7]} 32... Rf2 {[%clk 0:02:01.9]} 33. Rhd1 {[%clk
0:01:03.5]} 33... Qe8 {[%clk 0:01:55.4]} 34. Be1 {[%clk 0:00:30.4]} 34... Rf3
{[%clk 0:01:49.8]} 35. Bh4 {[%clk 0:00:29]} 35... Qxg6 {[%clk 0:01:29.8]} 36.
hxg6 {[%clk 0:00:29.9]} 36... Re8 {[%clk 0:01:29.9]} 37. Rg1 {[%clk 0:00:30.3]}
37... Ref8 {[%clk 0:01:28.2]} 38. g5 {[%clk 0:00:28.2]} 38... h5 {[%clk
0:01:27.7]} 39. Be1 {[%clk 0:00:26.9]} 39... R8f5 {[%clk 0:01:23.6]} 40. Rh4
{[%clk 0:00:23.2]} 40... R3f4 {[%clk 0:01:15.5]} 41. Rxf4 {[%clk 0:00:19.9]}
41... Nxf4 {[%clk 0:01:11.4]} 42. axb5 {[%clk 0:00:20.1]} 42... axb5 {[%clk
0:01:07.6]} 43. Rh1 {[%clk 0:00:20.7]} 43... Ng2 {[%clk 0:00:36.9]} 44. Bd2
{[%clk 0:00:16.7]} 44... Rf2 {[%clk 0:00:34.9]} 45. Bc1 {[%clk 0:00:16.3]} 45...
h4 {[%clk 0:00:34.4]} 46. Rh2 {[%clk 0:00:16.2]} 46... Re2 {[%clk 0:00:33.7]}
47. Kb3 {[%clk 0:00:16.4]} 47... Nf4 {[%clk 0:00:17.8]} 48. Bxf4 {[%clk
0:00:13.2]} 1-0

[Event "*** Titled Tuesday Blitz"]
[Site "Chess.com"]
[Date "2020.05.26"]
[Round "6"]
[White "VincentKeymer"]
[Black "ChessWarrior7197"]
[Result "0-1"]
[WhiteElo "2833"]
[BlackElo "2920"]
[TimeControl "180+1"]
[EndTime "11:08:03 PDT"]
[Termination "ChessWarrior7197 won by resignation"]

1. Nf3 {[%clk 0:03:00.1]} 1... d5 {[%clk 0:02:59.8]} 2. e3 {[%clk 0:03:00.5]}
2... Nf6 {[%clk 0:02:58.7]} 3. c4 {[%clk 0:03:01.1]} 3... e6 {[%clk 0:02:58.8]}
4. Nc3 {[%clk 0:03:01.7]} 4... b6 {[%clk 0:02:57.5]} 5. cxd5 {[%clk 0:03:01.1]}
5... exd5 {[%clk 0:02:57.4]} 6. g3 {[%clk 0:03:01.7]} 6... Bb7 {[%clk
0:02:57.1]} 7. Bg2 {[%clk 0:03:01.8]} 7... Bd6 {[%clk 0:02:54.8]} 8. O-O {[%clk
0:03:01.6]} 8... O-O {[%clk 0:02:55.3]} 9. b3 {[%clk 0:02:59.5]} 9... a6 {[%clk
0:02:54.6]} 10. Bb2 {[%clk 0:02:59.7]} 10... Nbd7 {[%clk 0:02:54.8]} 11. Rc1
{[%clk 0:02:59.6]} 11... Re8 {[%clk 0:02:53.6]} 12. Re1 {[%clk 0:02:59.9]} 12...
Qe7 {[%clk 0:02:47.2]} 13. Re2 {[%clk 0:02:59.4]} 13... b5 {[%clk 0:02:43.6]}
14. d4 {[%clk 0:02:53.9]} 14... b4 {[%clk 0:02:37.6]} 15. Na4 {[%clk 0:02:43.2]}
15... Ne4 {[%clk 0:02:35]} 16. Rec2 {[%clk 0:02:43.6]} 16... c6 {[%clk 0:02:32]}
17. Ne1 {[%clk 0:02:28]} 17... a5 {[%clk 0:02:27]} 18. Nd3 {[%clk 0:02:28.3]}
18... Rac8 {[%clk 0:02:18.5]} 19. Nac5 {[%clk 0:02:27.7]} 19... Ndxc5 {[%clk
0:02:15.9]} 20. dxc5 {[%clk 0:02:21.3]} 20... Bc7 {[%clk 0:02:15.4]} 21. Qg4
{[%clk 0:02:13]} 21... g6 {[%clk 0:02:10]} 22. Qh3 {[%clk 0:02:04]} 22... Rcd8
{[%clk 0:02:07.2]} 23. Qh6 {[%clk 0:01:58.7]} 23... f6 {[%clk 0:02:07.2]} 24.
Bxe4 {[%clk 0:01:48.7]} 24... dxe4 {[%clk 0:02:06.7]} 25. Nf4 {[%clk 0:01:49.3]}
25... Qg7 {[%clk 0:02:04.3]} 26. Qxg7+ {[%clk 0:01:42.8]} 26... Kxg7 {[%clk
0:02:05.2]} 27. Bd4 {[%clk 0:01:43]} 27... Ba6 {[%clk 0:01:59.6]} 28. Rd2 {[%clk
0:01:40.9]} 28... Be5 {[%clk 0:01:45.2]} 29. Rcd1 {[%clk 0:01:33.4]} 29... g5
{[%clk 0:01:45.2]} 30. Ng2 {[%clk 0:00:57.8]} 30... Rd5 {[%clk 0:01:40.7]} 31.
Bxe5 {[%clk 0:00:53.2]} 31... Rdxe5 {[%clk 0:01:34.9]} 32. Rd7+ {[%clk
0:00:51.4]} 32... Kg6 {[%clk 0:01:34.2]} 33. h4 {[%clk 0:00:48.9]} 33... h6
{[%clk 0:01:30.4]} 34. g4 {[%clk 0:00:48.4]} 34... R8e7 {[%clk 0:01:25.8]} 35.
R1d6 {[%clk 0:00:45.3]} 35... Bb5 {[%clk 0:01:19.3]} 36. h5+ {[%clk 0:00:34.3]}
36... Kf7 {[%clk 0:01:18.9]} 37. Ne1 {[%clk 0:00:33.3]} 37... Rxc5 {[%clk
0:01:18.3]} 38. Kg2 {[%clk 0:00:27.9]} 38... Rc1 {[%clk 0:01:10.4]} 39. Rd1
{[%clk 0:00:27.2]} 39... Rxd7 {[%clk 0:01:08.9]} 40. Rxc1 {[%clk 0:00:26.4]}
40... Rd2 {[%clk 0:01:08.1]} 41. Nc2 {[%clk 0:00:26.5]} 41... c5 {[%clk
0:01:00.4]} 42. Ne1 {[%clk 0:00:26.1]} 42... Rxa2 {[%clk 0:00:47.5]} 43. Rxc5
{[%clk 0:00:25.3]} 43... Be2 {[%clk 0:00:48.1]} 44. Kg3 {[%clk 0:00:20.3]} 44...
a4 {[%clk 0:00:39.7]} 45. bxa4 {[%clk 0:00:19.1]} 45... b3 {[%clk 0:00:40]} 46.
Rc7+ {[%clk 0:00:18.9]} 46... Ke8 {[%clk 0:00:34.4]} 47. Rb7 {[%clk 0:00:18.8]}
47... b2 {[%clk 0:00:34.3]} 48. a5 {[%clk 0:00:18.2]} 48... Bd3 {[%clk 0:00:30]}
49. Nxd3 {[%clk 0:00:16.3]} 49... exd3 {[%clk 0:00:30.9]} 50. Kf3 {[%clk
0:00:16.8]} 50... d2 {[%clk 0:00:30.7]} 51. Ke2 {[%clk 0:00:16.4]} 51... Ra1
{[%clk 0:00:30.9]} 52. Kxd2 {[%clk 0:00:12.4]} 52... b1=Q {[%clk 0:00:30.7]} 0-1

[Event "*** Titled Tuesday Blitz"]
[Site "Chess.com"]
[Date "2020.05.26"]
[Round "6"]
[White "marszach123"]
[Black "TheSodabread"]
[Result "1/2-1/2"]
[WhiteElo "2174"]
[BlackElo "1991"]
[TimeControl "180+1"]
[EndTime "11:08:03 PDT"]
[Termination "Game drawn by repetition"]

1. e4 {[%clk 0:03:00.9]} 1... d6 {[%clk 0:02:59.5]} 2. d4 {[%clk 0:02:59.7]}
2... Nf6 {[%clk 0:02:18.6]} 3. Nc3 {[%clk 0:02:59.3]} 3... Nbd7 {[%clk 0:02:18]}
4. f4 {[%clk 0:02:58.3]} 4... e5 {[%clk 0:02:18.1]} 5. Nf3 {[%clk 0:02:58.3]}
5... exd4 {[%clk 0:02:16.9]} 6. Qxd4 {[%clk 0:02:57.6]} 6... c6 {[%clk
0:02:15.3]} 7. Be3 {[%clk 0:02:57]} 7... d5 {[%clk 0:02:01.9]} 8. e5 {[%clk
0:02:45.5]} 8... Bc5 {[%clk 0:02:00.9]} 9. Qd2 {[%clk 0:02:45.3]} 9... Bxe3
{[%clk 0:01:50.1]} 10. Qxe3 {[%clk 0:02:45.8]} 10... Ng4 {[%clk 0:01:49.8]} 11.
Qd2 {[%clk 0:02:44.1]} 11... O-O {[%clk 0:01:44.6]} 12. O-O-O {[%clk 0:02:43.4]}
12... Nb6 {[%clk 0:01:43.3]} 13. h3 {[%clk 0:02:41.8]} 13... Nh6 {[%clk
0:01:43.1]} 14. g4 {[%clk 0:02:39.5]} 14... Qc7 {[%clk 0:01:33.1]} 15. Bd3
{[%clk 0:02:26.7]} 15... Nc4 {[%clk 0:01:17.9]} 16. Bxc4 {[%clk 0:02:26.4]}
16... dxc4 {[%clk 0:01:18.8]} 17. f5 {[%clk 0:02:23.5]} 17... b5 {[%clk
0:01:15]} 18. Qg5 {[%clk 0:02:19.1]} 18... f6 {[%clk 0:01:13.2]} 19. exf6 {[%clk
0:01:57.2]} 19... Rxf6 {[%clk 0:01:14.1]} 20. Ne4 {[%clk 0:01:55.7]} 20... Rf8
{[%clk 0:00:58.7]} 21. f6 {[%clk 0:01:53.6]} 21... Be6 {[%clk 0:00:55.6]} 22.
Nc5 {[%clk 0:01:10.8]} 22... Bd5 {[%clk 0:00:44.5]} 23. Rxd5 {[%clk 0:01:10.6]}
23... cxd5 {[%clk 0:00:45.4]} 24. Ne6 {[%clk 0:01:08.8]} 24... Qf7 {[%clk
0:00:41.8]} 25. Nxf8 {[%clk 0:00:36.8]} 25... Rxf8 {[%clk 0:00:35]} 26. fxg7
{[%clk 0:00:30.6]} 26... Qxg7 {[%clk 0:00:15.2]} 27. Qxd5+ {[%clk 0:00:30.3]}
27... Qf7 {[%clk 0:00:14.6]} 28. Qxf7+ {[%clk 0:00:27.4]} 28... Rxf7 {[%clk
0:00:15.5]} 29. Ne5 {[%clk 0:00:26]} 29... Rf2 {[%clk 0:00:11.8]} 30. a4 {[%clk
0:00:17.1]} 30... a6 {[%clk 0:00:09]} 31. axb5 {[%clk 0:00:16.6]} 31... axb5
{[%clk 0:00:09.9]} 32. Nc6 {[%clk 0:00:09.4]} 32... Nf7 {[%clk 0:00:08.9]} 33.
Nd4 {[%clk 0:00:09.1]} 33... b4 {[%clk 0:00:08.2]} 34. Nc6 {[%clk 0:00:08.7]}
34... b3 {[%clk 0:00:08.3]} 35. cxb3 {[%clk 0:00:08.3]} 35... cxb3 {[%clk
0:00:09.2]} 36. Nd4 {[%clk 0:00:08.4]} 36... Ne5 {[%clk 0:00:05.8]} 37. Nxb3
{[%clk 0:00:07.7]} 37... Nd3+ {[%clk 0:00:05]} 38. Kd1 {[%clk 0:00:07.3]} 38...
Nxb2+ {[%clk 0:00:04.3]} 39. Ke1 {[%clk 0:00:07.3]} 39... Nd3+ {[%clk
0:00:05.2]} 40. Kd1 {[%clk 0:00:07.7]} 40... Nb2+ {[%clk 0:00:05.6]} 41. Kc1
{[%clk 0:00:08]} 41... Nd3+ {[%clk 0:00:06]} 42. Kd1 {[%clk 0:00:07]} 42... Nb2+
{[%clk 0:00:06.4]} 1/2-1/2

[Event "*** Titled Tuesday Blitz"]
[Site "Chess.com"]
[Date "2020.05.26"]
[Round "6"]
[White "JTCoach"]
[Black "bazar-wokzal"]
[Result "0-1"]
[WhiteElo "2647"]
[BlackElo "2478"]
[TimeControl "180+1"]
[EndTime "11:08:09 PDT"]
[Termination "bazar-wokzal won by resignation"]

1. e4 {[%clk 0:03:00.9]} 1... Nc6 {[%clk 0:02:59.4]} 2. d4 {[%clk 0:02:56.7]}
2... d5 {[%clk 0:02:59.5]} 3. exd5 {[%clk 0:02:51.7]} 3... Qxd5 {[%clk
0:02:58.7]} 4. Nf3 {[%clk 0:02:52.1]} 4... Bg4 {[%clk 0:02:58.1]} 5. Be2 {[%clk
0:02:52.6]} 5... O-O-O {[%clk 0:02:57.6]} 6. Nc3 {[%clk 0:02:51.1]} 6... Qh5
{[%clk 0:02:55.8]} 7. Be3 {[%clk 0:02:46]} 7... e5 {[%clk 0:02:45.9]} 8. h3
{[%clk 0:02:20.1]} 8... exd4 {[%clk 0:02:24.8]} 9. Nxd4 {[%clk 0:02:20.1]} 9...
Bxe2 {[%clk 0:02:24.2]} 10. Qxe2 {[%clk 0:02:19.9]} 10... Qxe2+ {[%clk
0:02:23.1]} 11. Ncxe2 {[%clk 0:02:09.7]} 11... Nxd4 {[%clk 0:02:16.6]} 12. Nxd4
{[%clk 0:02:09.5]} 12... Nf6 {[%clk 0:02:13.4]} 13. O-O-O {[%clk 0:02:06.1]}
13... Bc5 {[%clk 0:02:13.2]} 14. Rhe1 {[%clk 0:01:47.4]} 14... Rhe8 {[%clk
0:02:07]} 15. Nf5 {[%clk 0:01:45.6]} 15... Rxd1+ {[%clk 0:01:59.6]} 16. Kxd1
{[%clk 0:01:40.6]} 16... Bxe3 {[%clk 0:01:57.2]} 17. Rxe3 {[%clk 0:01:40.5]}
17... Rxe3 {[%clk 0:01:55]} 18. Nxe3 {[%clk 0:01:40.8]} 18... Kd7 {[%clk
0:01:53.6]} 19. Ke2 {[%clk 0:01:39.5]} 19... g6 {[%clk 0:01:52.5]} 20. Kd3
{[%clk 0:01:37.8]} 20... b6 {[%clk 0:01:45.4]} 21. b4 {[%clk 0:01:31.7]} 21...
Ke6 {[%clk 0:01:34.8]} 22. c4 {[%clk 0:01:22]} 22... Nd7 {[%clk 0:01:34]} 23. a3
{[%clk 0:01:09.3]} 23... c5 {[%clk 0:01:32.3]} 24. b5 {[%clk 0:01:08.7]} 24...
f5 {[%clk 0:01:27.8]} 25. Nd5 {[%clk 0:01:06]} 25... Kd6 {[%clk 0:01:22.4]} 26.
a4 {[%clk 0:01:04]} 26... Ne5+ {[%clk 0:01:15.9]} 27. Kc3 {[%clk 0:01:04]} 27...
g5 {[%clk 0:01:15.2]} 28. f4 {[%clk 0:01:00.5]} 28... gxf4 {[%clk 0:01:13.7]}
29. Nxf4 {[%clk 0:01:00.8]} 29... Ng6 {[%clk 0:01:06.4]} 30. Nd5 {[%clk
0:00:39.7]} 30... Ke5 {[%clk 0:01:01.6]} 31. g3 {[%clk 0:00:33.1]} 31... f4
{[%clk 0:00:54.4]} 32. gxf4+ {[%clk 0:00:29.7]} 32... Nxf4 {[%clk 0:00:53.6]}
33. Ne7 {[%clk 0:00:30.4]} 33... Nxh3 {[%clk 0:00:49.5]} 34. Nc6+ {[%clk
0:00:30.7]} 34... Kd6 {[%clk 0:00:49.4]} 35. Nxa7 {[%clk 0:00:31.6]} 35... Nf4
{[%clk 0:00:45.9]} 36. Nc8+ {[%clk 0:00:20.5]} 36... Kc7 {[%clk 0:00:45.7]} 37.
Ne7 {[%clk 0:00:20.6]} 37... h5 {[%clk 0:00:43.6]} 38. Nf5 {[%clk 0:00:18.7]}
38... Ng6 {[%clk 0:00:38.4]} 39. Kd3 {[%clk 0:00:16.6]} 39... h4 {[%clk
0:00:34.6]} 40. Ke4 {[%clk 0:00:16.1]} 40... h3 {[%clk 0:00:34.6]} 41. Kf3
{[%clk 0:00:14.8]} 41... Ne5+ {[%clk 0:00:31.8]} 42. Kg3 {[%clk 0:00:13.7]}
42... Nxc4 {[%clk 0:00:32.3]} 43. Kxh3 {[%clk 0:00:13.1]} 43... Nb2 {[%clk
0:00:32.2]} 44. Kg4 {[%clk 0:00:09.8]} 44... Nxa4 {[%clk 0:00:31.8]} 45. Ne3
{[%clk 0:00:01.7]} 45... Nc3 {[%clk 0:00:30.2]} 46. Kf5 {[%clk 0:00:02.1]} 46...
Nxb5 {[%clk 0:00:29.5]} 47. Ke6 {[%clk 0:00:01.7]} 47... Kc6 {[%clk 0:00:28.2]}
48. Nf5 {[%clk 0:00:01.1]} 48... Nd4+ {[%clk 0:00:27.9]} 49. Nxd4+ {[%clk
0:00:01]} 49... cxd4 {[%clk 0:00:28]} 0-1

[Event "*** Titled Tuesday Blitz"]
[Site "Chess.com"]
[Date "2020.05.26"]
[Round "6"]
[White "atwalcb"]
[Black "northridgehawk"]
[Result "0-1"]
[WhiteElo "2387"]
[BlackElo "2201"]
[TimeControl "180+1"]
[EndTime "11:08:09 PDT"]
[Termination "northridgehawk won by resignation"]

1. d4 {[%clk 0:03:00.9]} 1... Nf6 {[%clk 0:02:58.1]} 2. Bg5 {[%clk 0:02:59.3]}
2... c5 {[%clk 0:02:40.2]} 3. d5 {[%clk 0:02:51.6]} 3... Ne4 {[%clk 0:02:36.6]}
4. Bf4 {[%clk 0:02:37.2]} 4... d6 {[%clk 0:02:33.2]} 5. Nd2 {[%clk 0:02:34.1]}
5... Nf6 {[%clk 0:02:31.9]} 6. e4 {[%clk 0:02:27.6]} 6... Nbd7 {[%clk 0:02:30]}
7. Ngf3 {[%clk 0:02:25.6]} 7... g6 {[%clk 0:02:15.5]} 8. g3 {[%clk 0:02:21.6]}
8... Bg7 {[%clk 0:01:58.8]} 9. a4 {[%clk 0:02:08.3]} 9... O-O {[%clk 0:01:50.5]}
10. Bg2 {[%clk 0:01:59]} 10... b6 {[%clk 0:01:38.9]} 11. O-O {[%clk 0:01:56.9]}
11... a6 {[%clk 0:01:35.9]} 12. h3 {[%clk 0:01:49.1]} 12... Bb7 {[%clk
0:01:33.4]} 13. Re1 {[%clk 0:01:45.6]} 13... b5 {[%clk 0:01:31.3]} 14. axb5
{[%clk 0:01:42.5]} 14... axb5 {[%clk 0:01:32.2]} 15. c3 {[%clk 0:01:42]} 15...
Qb6 {[%clk 0:01:23.3]} 16. Qc2 {[%clk 0:01:36.5]} 16... Ra6 {[%clk 0:01:17.9]}
17. Rxa6 {[%clk 0:01:32.8]} 17... Qxa6 {[%clk 0:01:18.8]} 18. Bf1 {[%clk
0:01:28.9]} 18... Ra8 {[%clk 0:01:17.9]} 19. Nb3 {[%clk 0:01:25.5]} 19... Qb6
{[%clk 0:01:16.7]} 20. Be3 {[%clk 0:01:20.9]} 20... Ra4 {[%clk 0:01:15.5]} 21.
Nbd2 {[%clk 0:01:12.1]} 21... Qa6 {[%clk 0:01:05.8]} 22. Qb3 {[%clk 0:01:06.5]}
22... c4 {[%clk 0:01:00.2]} 23. Qc2 {[%clk 0:01:05.6]} 23... Ra2 {[%clk
0:00:58.7]} 24. Nd4 {[%clk 0:01:01.2]} 24... Nc5 {[%clk 0:00:54.5]} 25. Rb1
{[%clk 0:00:56.8]} 25... Nfd7 {[%clk 0:00:42.3]} 26. Nxb5 {[%clk 0:00:43.4]}
26... Qxb5 {[%clk 0:00:36.1]} 27. Bxc4 {[%clk 0:00:43.8]} 27... Qa5 {[%clk
0:00:35.9]} 28. Bxa2 {[%clk 0:00:41]} 28... Qxa2 {[%clk 0:00:36.8]} 29. Rc1
{[%clk 0:00:36.1]} 29... Ba6 {[%clk 0:00:18.6]} 30. f3 {[%clk 0:00:24.7]} 30...
Bd3 {[%clk 0:00:17.6]} 31. Qd1 {[%clk 0:00:20]} 31... Nb6 {[%clk 0:00:16.4]} 32.
b4 {[%clk 0:00:17.8]} 32... Nca4 {[%clk 0:00:14.1]} 33. Bxb6 {[%clk 0:00:14.9]}
33... Nxb6 {[%clk 0:00:13.8]} 34. Nf1 {[%clk 0:00:14.3]} 34... Qc4 {[%clk
0:00:13.7]} 35. Ne3 {[%clk 0:00:14.1]} 35... Qb5 {[%clk 0:00:12]} 36. Qd2 {[%clk
0:00:13.9]} 36... Bc4 {[%clk 0:00:11.5]} 37. Ra1 {[%clk 0:00:13.4]} 37... h5
{[%clk 0:00:11.4]} 38. h4 {[%clk 0:00:13.4]} 38... Kh7 {[%clk 0:00:11.7]} 39.
Kf2 {[%clk 0:00:13]} 39... Bh6 {[%clk 0:00:12.2]} 40. Qc2 {[%clk 0:00:12.8]}
40... Bd3 {[%clk 0:00:11.8]} 41. Qd2 {[%clk 0:00:12.7]} 41... Nc4 {[%clk
0:00:11.9]} 42. Qxd3 {[%clk 0:00:12.7]} 42... Bxe3+ {[%clk 0:00:10.5]} 43. Kg2
{[%clk 0:00:13.1]} 43... Bh6 {[%clk 0:00:09]} 44. Ra5 {[%clk 0:00:13]} 44...
Ne3+ {[%clk 0:00:09]} 45. Qxe3 {[%clk 0:00:11.1]} 45... Qc4 {[%clk 0:00:08.7]}
46. Rb5 {[%clk 0:00:11.7]} 46... Bxe3 {[%clk 0:00:07.7]} 47. Rb7 {[%clk
0:00:11.4]} 47... Qe2+ {[%clk 0:00:07.8]} 48. Kh3 {[%clk 0:00:11.3]} 48... Qxf3
{[%clk 0:00:07.2]} 0-1

[Event "*** Titled Tuesday Blitz"]
[Site "Chess.com"]
[Date "2020.05.26"]
[Round "6"]
[White "MacDaddyMac"]
[Black "DucksParadise"]
[Result "1-0"]
[WhiteElo "2258"]
[BlackElo "2052"]
[TimeControl "180+1"]
[EndTime "11:08:09 PDT"]
[Termination "MacDaddyMac won by resignation"]

1. e4 {[%clk 0:03:00.9]} 1... e6 {[%clk 0:02:59.5]} 2. d4 {[%clk 0:02:55.5]}
2... Qe7 {[%clk 0:02:59.2]} 3. Nc3 {[%clk 0:02:54]} 3... d6 {[%clk 0:02:58.8]}
4. Be3 {[%clk 0:02:54.1]} 4... Nf6 {[%clk 0:02:57]} 5. f3 {[%clk 0:02:53.8]}
5... Nc6 {[%clk 0:02:50.5]} 6. Bb5 {[%clk 0:02:52.8]} 6... Bd7 {[%clk
0:02:50.7]} 7. Nge2 {[%clk 0:02:52.3]} 7... a6 {[%clk 0:02:40.2]} 8. Ba4 {[%clk
0:02:50.3]} 8... e5 {[%clk 0:02:27.6]} 9. d5 {[%clk 0:02:45.4]} 9... Na5 {[%clk
0:02:13.2]} 10. Bxd7+ {[%clk 0:02:43.6]} 10... Qxd7 {[%clk 0:02:14.1]} 11. b3
{[%clk 0:02:43.7]} 11... b5 {[%clk 0:02:07.5]} 12. Qd2 {[%clk 0:02:37]} 12...
Nb7 {[%clk 0:01:46.8]} 13. Nd1 {[%clk 0:02:25.6]} 13... h5 {[%clk 0:01:36.4]}
14. Nf2 {[%clk 0:02:23.2]} 14... g6 {[%clk 0:01:35.5]} 15. c4 {[%clk 0:02:21.1]}
15... bxc4 {[%clk 0:01:34]} 16. bxc4 {[%clk 0:02:22]} 16... c5 {[%clk
0:01:26.1]} 17. Qc2 {[%clk 0:01:56.2]} 17... Bh6 {[%clk 0:01:03.2]} 18. Bxh6
{[%clk 0:01:54.4]} 18... Rxh6 {[%clk 0:01:04.1]} 19. Qd2 {[%clk 0:01:47.9]}
19... Rh8 {[%clk 0:01:00.1]} 20. Qg5 {[%clk 0:01:47.5]} 20... Qe7 {[%clk
0:00:58.8]} 21. h4 {[%clk 0:01:46.6]} 21... Na5 {[%clk 0:00:55.8]} 22. Qd2
{[%clk 0:01:15.1]} 22... Nxc4 {[%clk 0:00:51.4]} 23. Qc2 {[%clk 0:01:15.3]}
23... Nb6 {[%clk 0:00:47.8]} 24. Rb1 {[%clk 0:01:14.1]} 24... Nfd7 {[%clk
0:00:47.8]} 25. a4 {[%clk 0:01:07.4]} 25... a5 {[%clk 0:00:36.5]} 26. Rb5 {[%clk
0:01:03.5]} 26... Qd8 {[%clk 0:00:20.6]} 27. g3 {[%clk 0:00:49.1]} 27... Qc7
{[%clk 0:00:18.6]} 28. Kd2 {[%clk 0:00:46.6]} 28... c4 {[%clk 0:00:13.6]} 29.
Nc3 {[%clk 0:00:41.9]} 29... Ke7 {[%clk 0:00:09.7]} 30. Rhb1 {[%clk 0:00:40.7]}
30... Rab8 {[%clk 0:00:09.2]} 31. Rxa5 {[%clk 0:00:21.8]} 31... Nc5 {[%clk
0:00:08.3]} 32. Nb5 {[%clk 0:00:20.2]} 32... Qd7 {[%clk 0:00:08.1]} 33. Ke2
{[%clk 0:00:17.7]} 33... Rb7 {[%clk 0:00:06.8]} 34. Nd1 {[%clk 0:00:14.4]} 34...
Ncxa4 {[%clk 0:00:05.7]} 35. Rxa4 {[%clk 0:00:13.5]} 35... Nxa4 {[%clk
0:00:05.5]} 36. Qxa4 {[%clk 0:00:14]} 36... Rc8 {[%clk 0:00:02.8]} 37. Ndc3
{[%clk 0:00:14]} 37... Rc5 {[%clk 0:00:02.2]} 38. Qa6 {[%clk 0:00:13.2]} 38...
f5 {[%clk 0:00:02.9]} 39. exf5 {[%clk 0:00:12.3]} 39... gxf5 {[%clk 0:00:02.6]}
40. f4 {[%clk 0:00:12.6]} 40... exf4 {[%clk 0:00:01.8]} 41. gxf4 {[%clk
0:00:13.5]} 41... Kf6 {[%clk 0:00:02]} 42. Kf3 {[%clk 0:00:13.6]} 42... Rbxb5
{[%clk 0:00:02]} 43. Nxb5 {[%clk 0:00:11.1]} 43... c3 {[%clk 0:00:02.9]} 44.
Qxd6+ {[%clk 0:00:10.9]} 44... Qxd6 {[%clk 0:00:02.8]} 45. Nxd6 {[%clk
0:00:11.8]} 45... c2 {[%clk 0:00:03.5]} 46. Rc1 {[%clk 0:00:12.1]} 46... Rxd5
{[%clk 0:00:03.7]} 47. Nc4 {[%clk 0:00:12.3]} 47... Rc5 {[%clk 0:00:03.9]} 48.
Rxc2 {[%clk 0:00:12.6]} 48... Ke6 {[%clk 0:00:04.2]} 49. Ne3 {[%clk 0:00:13.2]}
49... Kf6 {[%clk 0:00:05.1]} 50. Rxc5 {[%clk 0:00:13.3]} 1-0